[Event "Titled Tuesday Blitz June 27 Late 2023"]
[White "Zavortink, Matt"]
[Black "Vlassov, Nikolai"]
[WhiteFideId "2034263"]
[BlackFideId "4103360"]
[WhiteElo "2485"]
[BlackElo "2630"]
[Result "0-1"]
[Round "5"]
[TimeControl "180+2"]
[Date "2023.06.27"]
[WhiteClock "0:00:00"]
[BlackClock "0:00:05"]
[Board "75"]

1. Nf3 {[%clk 0:03:00]}  c5 {[%clk 0:02:59]} 2. g3 {[%clk 0:03:00]}  Nc6 {[%clk 0:02:58]} 3. Bg2 {[%clk 0:03:00]}  e5 {[%clk 0:02:59]} 4. c4 {[%clk 0:02:55]}  g5 {[%clk 0:02:55]} 5. O-O {[%clk 0:02:49]}  g4 {[%clk 0:02:55]} 6. Ne1 {[%clk 0:02:49]}  h5 {[%clk 0:02:55]} 7. Nc3 {[%clk 0:02:32]}  d6 {[%clk 0:02:50]} 8. d3 {[%clk 0:02:16]}  h4 {[%clk 0:02:49]} 9. Rb1 {[%clk 0:02:10]}  f5 {[%clk 0:02:46]} 10. a3 {[%clk 0:02:08]}  Qe7 {[%clk 0:02:12]} 11. f4 {[%clk 0:01:09]}  gxf3 {[%clk 0:01:48]} 12. Nxf3 {[%clk 0:01:04]}  hxg3 {[%clk 0:01:48]} 13. hxg3 {[%clk 0:01:04]}  Qg7 {[%clk 0:01:44]} 14. Qe1 {[%clk 0:01:00]}  Nf6 {[%clk 0:01:40]} 15. Bg5 {[%clk 0:00:57]}  Be7 {[%clk 0:01:25]} 16. Bxf6 {[%clk 0:00:49]}  Bxf6 {[%clk 0:01:24]} 17. Nd5 {[%clk 0:00:38]}  Bd8 {[%clk 0:01:15]} 18. e3 {[%clk 0:00:35]}  Rg8 {[%clk 0:01:07]} 19. b4 {[%clk 0:00:33]}  cxb4 {[%clk 0:00:53]} 20. axb4 {[%clk 0:00:33]}  Qxg3 {[%clk 0:00:50]} 21. Qxg3 {[%clk 0:00:32]}  Rxg3 {[%clk 0:00:51]} 22. Kf2 {[%clk 0:00:32]}  Rg7 {[%clk 0:00:43]} 23. Rh1 {[%clk 0:00:28]}  Be6 {[%clk 0:00:40]} 24. Rh8+ {[%clk 0:00:25]}  Kd7 {[%clk 0:00:34]} 25. Nf6+ {[%clk 0:00:11]}  Ke7 {[%clk 0:00:24]} 26. Nh5 {[%clk 0:00:10]}  Rf7 {[%clk 0:00:22]} 27. Ng5 {[%clk 0:00:10]}  f4 {[%clk 0:00:20]} 28. Nxf7 {[%clk 0:00:10]}  fxe3+ {[%clk 0:00:19]} 29. Kxe3 {[%clk 0:00:10]}  Bxf7 {[%clk 0:00:20]} 30. Ng3 {[%clk 0:00:07]}  Bb6+ {[%clk 0:00:20]} 31. c5 {[%clk 0:00:06]}  Rxh8 {[%clk 0:00:20]} 32. cxb6 {[%clk 0:00:06]}  axb6 {[%clk 0:00:21]} 33. b5 {[%clk 0:00:05]}  Nd4 {[%clk 0:00:20]} 34. Rc1 {[%clk 0:00:05]}  Rg8 {[%clk 0:00:19]} 35. Rc7+ {[%clk 0:00:05]}  Ke8 {[%clk 0:00:12]} 36. Kf2 {[%clk 0:00:03]}  Be6 {[%clk 0:00:08]} 37. Bxb7 {[%clk 0:00:03]}  Kd8 {[%clk 0:00:06]} 38. Rh7 {[%clk 0:00:02]}  Nxb5 {[%clk 0:00:06]} 39. Nh5 {[%clk 0:00:01]}  Rf8+ {[%clk 0:00:06]} 40. Ke1 {[%clk 0:00:01]}  Nd4 {[%clk 0:00:06]} 41. Ng7 {[%clk 0:00:01]}  Bd7 {[%clk 0:00:06]} 42. Bd5 {[%clk 0:00:01]}  b5 {[%clk 0:00:05]} 43. Kd2 {[%clk 0:00:01]}  b4 {[%clk 0:00:05]} 44. Kc1 {[%clk 0:00:01]}  b3 {[%clk 0:00:05]} 45. Rh2 {[%clk 0:00:01]}  Rf1+ {[%clk 0:00:05]} 46. Kb2 {[%clk 0:00:02]}  Kc7 {[%clk 0:00:05]} 47. Bxb3 {[%clk 0:00:02]}  Nxb3 {[%clk 0:00:05]} 48. Kxb3 {[%clk 0:00:03]}  Kc6 {[%clk 0:00:05]} 49. Rc2+ {[%clk 0:00:02]}  Kd5 {[%clk 0:00:05]} 50. Kc3 {[%clk 0:00:02]}  Rf3 {[%clk 0:00:05]} 51. Nh5 {[%clk 0:00:00]}  Bf5 {[%clk 0:00:05]} 0-1


[Site "https://www.chess.com"]

[Event "Titled Tuesday Blitz June 27 Late 2023"]
[White "Kavutskiy, Konstantin"]
[Black "Kovalevsky, Stanislav"]
[WhiteFideId "2026384"]
[BlackFideId "13508598"]
[WhiteElo "2624"]
[BlackElo "2477"]
[Result "1-0"]
[Round "5"]
[TimeControl "180+2"]
[Date "2023.06.27"]
[WhiteClock "0:00:52"]
[BlackClock "0:00:00"]
[Board "77"]

1. d4 {[%clk 0:03:00]}  d5 {[%clk 0:02:51]} 2. c4 {[%clk 0:02:59]}  Nf6 {[%clk 0:02:51]} 3. cxd5 {[%clk 0:02:59]}  Nxd5 {[%clk 0:02:51]} 4. Nf3 {[%clk 0:02:56]}  e6 {[%clk 0:02:45]} 5. e4 {[%clk 0:02:56]}  Nb6 {[%clk 0:02:45]} 6. Nc3 {[%clk 0:02:55]}  c5 {[%clk 0:02:45]} 7. d5 {[%clk 0:02:47]}  exd5 {[%clk 0:02:45]} 8. exd5 {[%clk 0:02:47]}  Be7 {[%clk 0:02:43]} 9. Bb5+ {[%clk 0:02:42]}  Bd7 {[%clk 0:02:42]} 10. Bd3 {[%clk 0:02:42]}  O-O {[%clk 0:02:37]} 11. h3 {[%clk 0:02:38]}  h6 {[%clk 0:02:31]} 12. O-O {[%clk 0:02:36]}  Nc8 {[%clk 0:02:27]} 13. Bf4 {[%clk 0:02:30]}  Nd6 {[%clk 0:02:23]} 14. Qd2 {[%clk 0:02:27]}  Na6 {[%clk 0:01:54]} 15. Rad1 {[%clk 0:02:21]}  Nc7 {[%clk 0:01:50]} 16. Rfe1 {[%clk 0:02:16]}  Re8 {[%clk 0:01:45]} 17. Ne5 {[%clk 0:02:10]}  Bf5 {[%clk 0:01:40]} 18. Nxf7 {[%clk 0:01:54]}  Kxf7 {[%clk 0:01:37]} 19. Bxd6 {[%clk 0:01:54]}  Bxd6 {[%clk 0:01:20]} 20. Bxf5 {[%clk 0:01:53]}  Qh4 {[%clk 0:01:16]} 21. Be6+ {[%clk 0:01:49]}  Kf8 {[%clk 0:01:12]} 22. Qd3 {[%clk 0:01:43]}  Qf4 {[%clk 0:00:55]} 23. g3 {[%clk 0:01:39]}  Qf6 {[%clk 0:00:50]} 24. Ne4 {[%clk 0:01:18]}  Qe7 {[%clk 0:00:42]} 25. Nxd6 {[%clk 0:01:14]}  Qxd6 {[%clk 0:00:42]} 26. Qg6 {[%clk 0:01:02]}  Re7 {[%clk 0:00:07]} 27. Rd3 {[%clk 0:00:52]}  Nxe6 {[%clk 0:00:01]} 28. dxe6 {[%clk 0:00:53]}  Qxd3 {[%clk 0:00:00]} 29. Qxd3 {[%clk 0:00:52]} 1-0


[Site "https://www.chess.com"]

[Event "Titled Tuesday Blitz June 27 Late 2023"]
[White "Piesik, Piotr"]
[Black "Tomaszewski, Kacper"]
[WhiteFideId "1136194"]
[BlackFideId "1127373"]
[WhiteElo "2616"]
[BlackElo "2464"]
[Result "1-0"]
[Round "5"]
[TimeControl "180+2"]
[Date "2023.06.27"]
[WhiteClock "0:00:06"]
[BlackClock "0:00:00"]
[Board "79"]

1. e4 {[%clk 0:02:58]}  a6 {[%clk 0:03:00]} 2. d4 {[%clk 0:02:57]}  c5 {[%clk 0:03:00]} 3. d5 {[%clk 0:02:55]}  b5 {[%clk 0:03:00]} 4. a4 {[%clk 0:02:55]}  b4 {[%clk 0:03:00]} 5. Nd2 {[%clk 0:02:54]}  e5 {[%clk 0:02:57]} 6. Nc4 {[%clk 0:02:43]}  d6 {[%clk 0:02:57]} 7. f4 {[%clk 0:02:41]}  Nd7 {[%clk 0:02:51]} 8. Nf3 {[%clk 0:02:38]}  f6 {[%clk 0:02:41]} 9. a5 {[%clk 0:02:34]}  g6 {[%clk 0:02:36]} 10. h4 {[%clk 0:02:27]}  Qe7 {[%clk 0:02:26]} 11. Bd3 {[%clk 0:02:18]}  Bh6 {[%clk 0:02:14]} 12. h5 {[%clk 0:02:16]}  g5 {[%clk 0:02:08]} 13. fxg5 {[%clk 0:02:15]}  fxg5 {[%clk 0:02:08]} 14. Ne3 {[%clk 0:02:06]}  Ndf6 {[%clk 0:02:04]} 15. Nd2 {[%clk 0:02:05]}  g4 {[%clk 0:02:01]} 16. Ndc4 {[%clk 0:02:01]}  Bf4 {[%clk 0:01:56]} 17. Qe2 {[%clk 0:01:49]}  Ra7 {[%clk 0:01:10]} 18. Nb6 {[%clk 0:01:46]}  Bb7 {[%clk 0:01:10]} 19. Nf5 {[%clk 0:01:45]}  Qd8 {[%clk 0:01:07]} 20. Bxf4 {[%clk 0:01:37]}  exf4 {[%clk 0:01:08]} 21. e5 {[%clk 0:01:38]}  f3 {[%clk 0:00:51]} 22. gxf3 {[%clk 0:01:35]}  gxf3 {[%clk 0:00:52]} 23. Qxf3 {[%clk 0:01:24]}  dxe5 {[%clk 0:00:52]} 24. Ng7+ {[%clk 0:01:24]}  Kf7 {[%clk 0:00:52]} 25. Ne6 {[%clk 0:01:17]}  Qd6 {[%clk 0:00:45]} 26. Rg1 {[%clk 0:00:46]}  e4 {[%clk 0:00:33]} 27. Rg7+ {[%clk 0:00:45]}  Ke8 {[%clk 0:00:33]} 28. Bxe4 {[%clk 0:00:33]}  Bxd5 {[%clk 0:00:31]} 29. Bxd5 {[%clk 0:00:27]}  Qe5+ {[%clk 0:00:31]} 30. Qe2 {[%clk 0:00:22]}  Qxe2+ {[%clk 0:00:23]} 31. Kxe2 {[%clk 0:00:23]}  Rxg7 {[%clk 0:00:20]} 32. Nxg7+ {[%clk 0:00:24]}  Ke7 {[%clk 0:00:20]} 33. Re1 {[%clk 0:00:18]}  Nxd5 {[%clk 0:00:18]} 34. Nxd5+ {[%clk 0:00:17]}  Kd6 {[%clk 0:00:17]} 35. Rd1 {[%clk 0:00:14]}  Nh6 {[%clk 0:00:15]} 36. Nxb4+ {[%clk 0:00:12]}  Ke5 {[%clk 0:00:15]} 37. Nc6+ {[%clk 0:00:12]}  Ke4 {[%clk 0:00:11]} 38. Ne6 {[%clk 0:00:09]}  Re8 {[%clk 0:00:10]} 39. Nxc5+ {[%clk 0:00:07]}  Kf4+ {[%clk 0:00:11]} 40. Kd2 {[%clk 0:00:06]}  Rc8 {[%clk 0:00:09]} 41. Nd3+ {[%clk 0:00:07]}  Ke4 {[%clk 0:00:08]} 42. Re1+ {[%clk 0:00:07]}  Kf3 {[%clk 0:00:05]} 43. Nd4+ {[%clk 0:00:07]}  Kg2 {[%clk 0:00:04]} 44. Re6 {[%clk 0:00:06]}  Ng4 {[%clk 0:00:04]} 45. Rxa6 {[%clk 0:00:06]}  Nh2 {[%clk 0:00:03]} 46. Ra7 {[%clk 0:00:06]}  Rd8 {[%clk 0:00:03]} 47. Rg7+ {[%clk 0:00:05]}  Kh3 {[%clk 0:00:03]} 48. Rxh7 {[%clk 0:00:05]}  Rxd4 {[%clk 0:00:02]} 49. a6 {[%clk 0:00:06]}  Nf3+ {[%clk 0:00:00]} 50. Ke3 {[%clk 0:00:06]} 1-0


[Site "https://www.chess.com"]

[Event "Titled Tuesday Blitz June 27 Late 2023"]
[White "Luong Phuong Hanh"]
[Black "Moral Garcia, Serafin"]
[WhiteFideId "12401013"]
[BlackFideId "2201925"]
[WhiteElo "2458"]
[BlackElo "2614"]
[Result "0-1"]
[Round "5"]
[TimeControl "180+2"]
[Date "2023.06.27"]
[WhiteClock "0:00:00"]
[BlackClock "0:00:19"]
[Board "80"]

1. d4 {[%clk 0:02:44]}  Nf6 {[%clk 0:02:56]} 2. Nf3 {[%clk 0:02:44]}  g6 {[%clk 0:02:56]} 3. g3 {[%clk 0:02:43]}  Bg7 {[%clk 0:02:56]} 4. Bg2 {[%clk 0:02:43]}  O-O {[%clk 0:02:56]} 5. O-O {[%clk 0:02:43]}  d5 {[%clk 0:02:56]} 6. c4 {[%clk 0:02:43]}  dxc4 {[%clk 0:02:56]} 7. Na3 {[%clk 0:02:43]}  c3 {[%clk 0:02:57]} 8. bxc3 {[%clk 0:02:44]}  c5 {[%clk 0:02:57]} 9. Qb3 {[%clk 0:02:44]}  Nc6 {[%clk 0:02:56]} 10. Rd1 {[%clk 0:02:43]}  Na5 {[%clk 0:02:53]} 11. Qb2 {[%clk 0:02:42]}  Bf5 {[%clk 0:02:48]} 12. Ne5 {[%clk 0:02:39]}  Qc7 {[%clk 0:02:31]} 13. Bf4 {[%clk 0:02:38]}  Qc8 {[%clk 0:02:20]} 14. Qb5 {[%clk 0:02:31]}  Nc6 {[%clk 0:01:46]} 15. Nxc6 {[%clk 0:02:27]}  bxc6 {[%clk 0:01:47]} 16. Qxc6 {[%clk 0:02:20]}  Qxc6 {[%clk 0:01:45]} 17. Bxc6 {[%clk 0:02:21]}  Rac8 {[%clk 0:01:45]} 18. Bb7 {[%clk 0:02:18]}  Rcd8 {[%clk 0:01:39]} 19. Be5 {[%clk 0:01:40]}  cxd4 {[%clk 0:01:33]} 20. Bxd4 {[%clk 0:01:26]}  Rd7 {[%clk 0:01:26]} 21. Bf3 {[%clk 0:01:12]}  Rfd8 {[%clk 0:01:21]} 22. e3 {[%clk 0:01:08]}  Ne4 {[%clk 0:01:14]} 23. Bxg7 {[%clk 0:01:06]}  Kxg7 {[%clk 0:01:07]} 24. Nb5 {[%clk 0:00:48]}  a6 {[%clk 0:01:01]} 25. Nd4 {[%clk 0:00:25]}  Nxc3 {[%clk 0:01:01]} 26. Rdc1 {[%clk 0:00:22]}  Nb5 {[%clk 0:00:58]} 27. Nxf5+ {[%clk 0:00:20]}  gxf5 {[%clk 0:00:58]} 28. Rc5 {[%clk 0:00:20]}  e6 {[%clk 0:00:57]} 29. a4 {[%clk 0:00:19]}  Nd6 {[%clk 0:00:53]} 30. Rc6 {[%clk 0:00:19]}  a5 {[%clk 0:00:53]} 31. Ra6 {[%clk 0:00:18]}  Nc4 {[%clk 0:00:50]} 32. Be2 {[%clk 0:00:19]}  Nd2 {[%clk 0:00:37]} 33. Rd1 {[%clk 0:00:15]}  Nf3+ {[%clk 0:00:37]} 34. Bxf3 {[%clk 0:00:15]}  Rxd1+ {[%clk 0:00:37]} 35. Bxd1 {[%clk 0:00:15]}  Rxd1+ {[%clk 0:00:37]} 36. Kg2 {[%clk 0:00:16]}  Rd5 {[%clk 0:00:37]} 37. Kf3 {[%clk 0:00:16]}  Kf6 {[%clk 0:00:37]} 38. Kf4 {[%clk 0:00:14]}  Rc5 {[%clk 0:00:33]} 39. h4 {[%clk 0:00:14]}  Rc4+ {[%clk 0:00:32]} 40. Kf3 {[%clk 0:00:14]}  Rxa4 {[%clk 0:00:33]} 41. Ra8 {[%clk 0:00:13]}  Ra2 {[%clk 0:00:32]} 42. Rh8 {[%clk 0:00:12]}  Kg7 {[%clk 0:00:31]} 43. Ra8 {[%clk 0:00:12]}  a4 {[%clk 0:00:31]} 44. Ra6 {[%clk 0:00:09]}  h5 {[%clk 0:00:29]} 45. Ra5 {[%clk 0:00:07]}  Kf6 {[%clk 0:00:29]} 46. Ra8 {[%clk 0:00:06]}  a3 {[%clk 0:00:21]} 47. Rh8 {[%clk 0:00:06]}  Rb2 {[%clk 0:00:19]} 48. Ra8 {[%clk 0:00:06]}  a2 {[%clk 0:00:19]} 49. Ra7 {[%clk 0:00:06]}  Ke5 {[%clk 0:00:19]} 50. Ra5+ {[%clk 0:00:06]}  Kd6 {[%clk 0:00:19]} 51. Ra6+ {[%clk 0:00:05]}  Kc5 {[%clk 0:00:19]} 52. Ra8 {[%clk 0:00:05]}  Kc4 {[%clk 0:00:19]} 53. Rc8+ {[%clk 0:00:05]}  Kb3 {[%clk 0:00:19]} 54. Ra8 {[%clk 0:00:00]}  Kc2 {[%clk 0:00:19]} 0-1


[Site "https://www.chess.com"]

[Event "Titled Tuesday Blitz June 27 Late 2023"]
[White "HamedWafa4"]
[Black "Herman, Daniel"]
[BlackFideId "30935008"]
[WhiteElo "2611"]
[BlackElo "2456"]
[Result "1-0"]
[Round "5"]
[TimeControl "180+2"]
[Date "2023.06.27"]
[WhiteClock "0:00:14"]
[BlackClock "0:00:11"]
[Board "81"]

1. e4 {[%clk 0:03:00]}  d6 {[%clk 0:02:55]} 2. d4 {[%clk 0:03:00]}  Nf6 {[%clk 0:02:54]} 3. Nc3 {[%clk 0:03:00]}  e5 {[%clk 0:02:54]} 4. dxe5 {[%clk 0:03:00]}  dxe5 {[%clk 0:02:53]} 5. Qxd8+ {[%clk 0:03:01]}  Kxd8 {[%clk 0:02:54]} 6. Nf3 {[%clk 0:03:02]}  Bd6 {[%clk 0:02:53]} 7. Bg5 {[%clk 0:03:02]}  c6 {[%clk 0:02:42]} 8. O-O-O {[%clk 0:02:59]}  Kc7 {[%clk 0:02:42]} 9. Nd2 {[%clk 0:02:57]}  Ng4 {[%clk 0:02:23]} 10. Bh4 {[%clk 0:02:21]}  Bc5 {[%clk 0:02:22]} 11. f3 {[%clk 0:02:02]}  Nf2 {[%clk 0:02:17]} 12. Bxf2 {[%clk 0:01:58]}  Bxf2 {[%clk 0:02:18]} 13. Bc4 {[%clk 0:01:51]}  f6 {[%clk 0:02:11]} 14. h4 {[%clk 0:01:45]}  Nd7 {[%clk 0:01:54]} 15. Be6 {[%clk 0:01:39]}  Nc5 {[%clk 0:01:50]} 16. Bxc8 {[%clk 0:01:37]}  Raxc8 {[%clk 0:01:51]} 17. h5 {[%clk 0:01:36]}  Rcd8 {[%clk 0:01:36]} 18. Nb3 {[%clk 0:01:36]}  Be3+ {[%clk 0:01:32]} 19. Kb1 {[%clk 0:01:36]}  Nxb3 {[%clk 0:01:31]} 20. axb3 {[%clk 0:01:36]}  Rxd1+ {[%clk 0:01:19]} 21. Rxd1 {[%clk 0:01:37]}  Rd8 {[%clk 0:01:18]} 22. Rxd8 {[%clk 0:01:37]}  Kxd8 {[%clk 0:01:19]} 23. Nd1 {[%clk 0:01:36]}  Bd4 {[%clk 0:01:19]} 24. c3 {[%clk 0:01:36]}  Bc5 {[%clk 0:01:18]} 25. b4 {[%clk 0:01:36]}  Bb6 {[%clk 0:01:18]} 26. Kc2 {[%clk 0:01:36]}  Ke7 {[%clk 0:01:15]} 27. Kd3 {[%clk 0:01:35]}  Ke6 {[%clk 0:01:13]} 28. b3 {[%clk 0:01:29]}  g6 {[%clk 0:01:11]} 29. hxg6 {[%clk 0:01:28]}  hxg6 {[%clk 0:01:11]} 30. Nb2 {[%clk 0:01:29]}  f5 {[%clk 0:01:09]} 31. Nc4 {[%clk 0:01:28]}  Bc7 {[%clk 0:01:02]} 32. Ne3 {[%clk 0:01:17]}  b5 {[%clk 0:00:57]} 33. exf5+ {[%clk 0:01:05]}  gxf5 {[%clk 0:00:57]} 34. g4 {[%clk 0:01:06]}  fxg4 {[%clk 0:00:54]} 35. fxg4 {[%clk 0:01:07]}  Bb6 {[%clk 0:00:47]} 36. Ke4 {[%clk 0:01:06]}  a5 {[%clk 0:00:36]} 37. bxa5 {[%clk 0:01:05]}  Bxa5 {[%clk 0:00:37]} 38. b4 {[%clk 0:01:05]}  Bd8 {[%clk 0:00:36]} 39. Nf1 {[%clk 0:00:44]}  Bh4 {[%clk 0:00:33]} 40. Nh2 {[%clk 0:00:42]}  Be1 {[%clk 0:00:31]} 41. Kd3 {[%clk 0:00:42]}  e4+ {[%clk 0:00:29]} 42. Kc2 {[%clk 0:00:38]}  Bg3 {[%clk 0:00:24]} 43. Nf1 {[%clk 0:00:37]}  Bf4 {[%clk 0:00:24]} 44. Nd2 {[%clk 0:00:36]}  Ke5 {[%clk 0:00:15]} 45. Nb3 {[%clk 0:00:36]}  Be3 {[%clk 0:00:14]} 46. Kd1 {[%clk 0:00:35]}  Kd5 {[%clk 0:00:13]} 47. Ke2 {[%clk 0:00:35]}  Bg5 {[%clk 0:00:13]} 48. Na5 {[%clk 0:00:33]}  c5 {[%clk 0:00:12]} 49. bxc5 {[%clk 0:00:27]}  Kxc5 {[%clk 0:00:12]} 50. Kd1 {[%clk 0:00:26]}  Kd5 {[%clk 0:00:12]} 51. Ke2 {[%clk 0:00:25]}  Ke5 {[%clk 0:00:12]} 52. Nb3 {[%clk 0:00:24]}  Kf4 {[%clk 0:00:12]} 53. Nd4 {[%clk 0:00:24]}  Bf6 {[%clk 0:00:11]} 54. Nxb5 {[%clk 0:00:19]}  Kxg4 {[%clk 0:00:12]} 55. c4 {[%clk 0:00:19]}  Be7 {[%clk 0:00:12]} 56. Ke3 {[%clk 0:00:19]}  Kf5 {[%clk 0:00:11]} 57. Nd4+ {[%clk 0:00:19]}  Kf6 {[%clk 0:00:05]} 58. Kxe4 {[%clk 0:00:20]}  Bc5 {[%clk 0:00:05]} 59. Kd5 {[%clk 0:00:19]}  Bb4 {[%clk 0:00:04]} 60. Nb5 {[%clk 0:00:19]}  Ke7 {[%clk 0:00:04]} 61. Nd4 {[%clk 0:00:16]}  Kd7 {[%clk 0:00:04]} 62. Nc6 {[%clk 0:00:16]}  Ba3 {[%clk 0:00:03]} 63. Ne5+ {[%clk 0:00:17]}  Kc7 {[%clk 0:00:04]} 64. Nd3 {[%clk 0:00:17]}  Kb7 {[%clk 0:00:03]} 65. Kd4 {[%clk 0:00:18]}  Kc6 {[%clk 0:00:03]} 66. Kc3 {[%clk 0:00:19]}  Bc5 {[%clk 0:00:03]} 67. Kb3 {[%clk 0:00:17]}  Bd6 {[%clk 0:00:04]} 68. Ka4 {[%clk 0:00:17]}  Bc7 {[%clk 0:00:04]} 69. Kb4 {[%clk 0:00:16]}  Bd6+ {[%clk 0:00:04]} 70. Kc3 {[%clk 0:00:17]}  Bc7 {[%clk 0:00:04]} 71. Nb4+ {[%clk 0:00:17]}  Kc5 {[%clk 0:00:04]} 72. Nd3+ {[%clk 0:00:18]}  Kc6 {[%clk 0:00:05]} 73. Kd4 {[%clk 0:00:17]}  Bb6+ {[%clk 0:00:05]} 74. Ke5 {[%clk 0:00:17]}  Bc7+ {[%clk 0:00:05]} 75. Ke6 {[%clk 0:00:18]}  Bd6 {[%clk 0:00:06]} 76. Kf5 {[%clk 0:00:14]}  Bc5 {[%clk 0:00:06]} 77. Ke4 {[%clk 0:00:14]}  Bd6 {[%clk 0:00:06]} 78. Kd4 {[%clk 0:00:14]}  Bc7 {[%clk 0:00:07]} 79. Nb4+ {[%clk 0:00:14]}  Kd6 {[%clk 0:00:07]} 80. c5+ {[%clk 0:00:15]}  Kd7 {[%clk 0:00:08]} 81. Kd5 {[%clk 0:00:14]}  Bb8 {[%clk 0:00:08]} 82. Na6 {[%clk 0:00:13]}  Ba7 {[%clk 0:00:07]} 83. c6+ {[%clk 0:00:12]}  Kc8 {[%clk 0:00:08]} 84. Kd6 {[%clk 0:00:12]}  Bb6 {[%clk 0:00:08]} 85. Nb4 {[%clk 0:00:12]}  Ba5 {[%clk 0:00:08]} 86. Nd5 {[%clk 0:00:12]}  Bc7+ {[%clk 0:00:09]} 87. Nxc7 {[%clk 0:00:12]}  Kb8 {[%clk 0:00:09]} 88. Ne6 {[%clk 0:00:12]}  Kc8 {[%clk 0:00:09]} 89. c7 {[%clk 0:00:13]}  Kb7 {[%clk 0:00:09]} 90. Kd7 {[%clk 0:00:14]}  Ka8 {[%clk 0:00:10]} 91. c8=Q+ {[%clk 0:00:14]}  Ka7 {[%clk 0:00:10]} 92. Qc1 {[%clk 0:00:14]}  Ka8 {[%clk 0:00:10]} 93. Qb1 {[%clk 0:00:14]}  Ka7 {[%clk 0:00:10]} 94. Kc7 {[%clk 0:00:15]}  Ka6 {[%clk 0:00:11]} 95. Qa1+ {[%clk 0:00:16]}  Kb5 {[%clk 0:00:11]} 96. Qd4 {[%clk 0:00:14]}  Ka6 {[%clk 0:00:11]} 97. Qb6# {[%clk 0:00:14]} 1-0


[Site "https://www.chess.com"]

[Event "Titled Tuesday Blitz June 27 Late 2023"]
[White "Manukian, Artak"]
[Black "Aldokhin, Ivan"]
[WhiteFideId "13301373"]
[BlackFideId "24115720"]
[WhiteElo "2456"]
[BlackElo "2608"]
[Result "0-1"]
[Round "5"]
[TimeControl "180+2"]
[Date "2023.06.27"]
[WhiteClock "0:01:18"]
[BlackClock "0:00:30"]
[Board "82"]

1. e4 {[%clk 0:03:00]}  c5 {[%clk 0:02:59]} 2. Nf3 {[%clk 0:03:00]}  e6 {[%clk 0:03:00]} 3. c3 {[%clk 0:03:00]}  Nf6 {[%clk 0:02:59]} 4. e5 {[%clk 0:03:01]}  Nd5 {[%clk 0:03:00]} 5. d4 {[%clk 0:03:02]}  cxd4 {[%clk 0:03:01]} 6. cxd4 {[%clk 0:03:02]}  d6 {[%clk 0:03:01]} 7. Nc3 {[%clk 0:03:03]}  Nc6 {[%clk 0:03:02]} 8. Bd3 {[%clk 0:03:03]}  Be7 {[%clk 0:03:01]} 9. O-O {[%clk 0:03:03]}  O-O {[%clk 0:03:00]} 10. Qe2 {[%clk 0:03:03]}  f5 {[%clk 0:02:38]} 11. exf6 {[%clk 0:02:53]}  Nxf6 {[%clk 0:02:28]} 12. Bg5 {[%clk 0:02:39]}  d5 {[%clk 0:02:25]} 13. Rae1 {[%clk 0:02:34]}  Bd7 {[%clk 0:02:21]} 14. Bb1 {[%clk 0:02:25]}  Qe8 {[%clk 0:02:09]} 15. Qd3 {[%clk 0:02:19]}  Qh5 {[%clk 0:02:09]} 16. Bf4 {[%clk 0:02:12]}  Ne4 {[%clk 0:01:57]} 17. Nxe4 {[%clk 0:02:03]}  Rxf4 {[%clk 0:01:56]} 18. Ng3 {[%clk 0:02:02]}  Qh6 {[%clk 0:01:54]} 19. Ne2 {[%clk 0:01:46]}  Rf7 {[%clk 0:01:48]} 20. Ne5 {[%clk 0:01:39]}  Nxe5 {[%clk 0:01:42]} 21. dxe5 {[%clk 0:01:40]}  Raf8 {[%clk 0:01:37]} 22. f4 {[%clk 0:01:40]}  a6 {[%clk 0:01:31]} 23. Nd4 {[%clk 0:01:39]}  Rxf4 {[%clk 0:01:28]} 24. Rxf4 {[%clk 0:01:38]}  Rxf4 {[%clk 0:01:28]} 25. g3 {[%clk 0:01:35]}  Rf8 {[%clk 0:00:56]} 26. Qb3 {[%clk 0:01:32]}  Qd2 {[%clk 0:00:44]} 27. Qe3 {[%clk 0:01:30]}  Qxe3+ {[%clk 0:00:33]} 28. Rxe3 {[%clk 0:01:31]}  Bc5 {[%clk 0:00:34]} 29. Rd3 {[%clk 0:01:28]}  Bb5 {[%clk 0:00:34]} 30. Rd1 {[%clk 0:01:28]}  Bxd4+ {[%clk 0:00:34]} 31. Kg2 {[%clk 0:01:18]}  Rf2+ {[%clk 0:00:30]} 0-1


[Site "https://www.chess.com"]

[Event "Titled Tuesday Blitz June 27 Late 2023"]
[White "Isajevsky, Anton"]
[Black "Gulamali, Kazim"]
[WhiteFideId "4142500"]
[BlackFideId "2024764"]
[WhiteElo "2607"]
[BlackElo "2454"]
[Result "1-0"]
[Round "5"]
[TimeControl "180+2"]
[Date "2023.06.27"]
[WhiteClock "0:00:05"]
[BlackClock "0:00:16"]
[Board "83"]

1. c4 {[%clk 0:03:00]}  e6 {[%clk 0:02:59]} 2. Nf3 {[%clk 0:03:00]}  d5 {[%clk 0:02:59]} 3. e3 {[%clk 0:03:01]}  Nf6 {[%clk 0:02:58]} 4. Nc3 {[%clk 0:03:01]}  a6 {[%clk 0:02:56]} 5. b3 {[%clk 0:03:01]}  Bd6 {[%clk 0:02:55]} 6. Bb2 {[%clk 0:03:00]}  Nbd7 {[%clk 0:02:50]} 7. g3 {[%clk 0:02:57]}  O-O {[%clk 0:02:45]} 8. Bg2 {[%clk 0:02:57]}  c6 {[%clk 0:02:44]} 9. d4 {[%clk 0:02:52]}  Qe7 {[%clk 0:02:42]} 10. O-O {[%clk 0:02:52]}  b5 {[%clk 0:02:14]} 11. Nd2 {[%clk 0:02:35]}  bxc4 {[%clk 0:02:12]} 12. bxc4 {[%clk 0:02:35]}  Rb8 {[%clk 0:02:12]} 13. Rb1 {[%clk 0:02:30]}  Bb7 {[%clk 0:01:41]} 14. c5 {[%clk 0:02:28]}  Bc7 {[%clk 0:01:42]} 15. f4 {[%clk 0:02:29]}  Rfc8 {[%clk 0:01:19]} 16. Re1 {[%clk 0:02:20]}  a5 {[%clk 0:01:14]} 17. Bf1 {[%clk 0:02:20]}  Ra8 {[%clk 0:01:07]} 18. Na4 {[%clk 0:02:15]}  Ba6 {[%clk 0:01:07]} 19. Bxa6 {[%clk 0:02:13]}  Rxa6 {[%clk 0:01:08]} 20. Bc3 {[%clk 0:02:13]}  Raa8 {[%clk 0:01:04]} 21. Qe2 {[%clk 0:02:04]}  Ne4 {[%clk 0:00:41]} 22. Nxe4 {[%clk 0:02:04]}  dxe4 {[%clk 0:00:42]} 23. Rb7 {[%clk 0:02:03]}  Qd8 {[%clk 0:00:40]} 24. Reb1 {[%clk 0:02:01]}  Rcb8 {[%clk 0:00:39]} 25. Bd2 {[%clk 0:01:30]}  Qc8 {[%clk 0:00:32]} 26. Rxb8 {[%clk 0:01:28]}  Rxb8 {[%clk 0:00:33]} 27. Rb3 {[%clk 0:01:22]}  Rxb3 {[%clk 0:00:31]} 28. axb3 {[%clk 0:01:23]}  Qb7 {[%clk 0:00:31]} 29. Qc4 {[%clk 0:01:22]}  Nf6 {[%clk 0:00:32]} 30. Kf2 {[%clk 0:01:01]}  Nd5 {[%clk 0:00:31]} 31. Nb2 {[%clk 0:00:34]}  f5 {[%clk 0:00:19]} 32. Qa4 {[%clk 0:00:31]}  Qb5 {[%clk 0:00:19]} 33. Nc4 {[%clk 0:00:32]}  Qxa4 {[%clk 0:00:18]} 34. bxa4 {[%clk 0:00:33]}  Kf7 {[%clk 0:00:19]} 35. Bxa5 {[%clk 0:00:29]}  Bxa5 {[%clk 0:00:19]} 36. Nxa5 {[%clk 0:00:30]}  Nb4 {[%clk 0:00:19]} 37. Nc4 {[%clk 0:00:25]}  Ke7 {[%clk 0:00:20]} 38. h3 {[%clk 0:00:23]}  Kd7 {[%clk 0:00:20]} 39. g4 {[%clk 0:00:23]}  g6 {[%clk 0:00:21]} 40. Kg3 {[%clk 0:00:23]}  Nc2 {[%clk 0:00:19]} 41. a5 {[%clk 0:00:22]}  Kc7 {[%clk 0:00:17]} 42. h4 {[%clk 0:00:20]}  Kb7 {[%clk 0:00:17]} 43. h5 {[%clk 0:00:18]}  Ka6 {[%clk 0:00:18]} 44. h6 {[%clk 0:00:18]}  Kb5 {[%clk 0:00:17]} 45. gxf5 {[%clk 0:00:14]}  exf5 {[%clk 0:00:18]} 46. Kh4 {[%clk 0:00:11]}  Kxc4 {[%clk 0:00:18]} 47. a6 {[%clk 0:00:11]}  Nxe3 {[%clk 0:00:19]} 48. a7 {[%clk 0:00:11]}  Kxd4 {[%clk 0:00:20]} 49. a8=Q {[%clk 0:00:11]}  Nd5 {[%clk 0:00:21]} 50. Qa4+ {[%clk 0:00:09]}  Kd3 {[%clk 0:00:21]} 51. Qb3+ {[%clk 0:00:07]}  Nc3 {[%clk 0:00:21]} 52. Qf7 {[%clk 0:00:07]}  e3 {[%clk 0:00:22]} 53. Qxh7 {[%clk 0:00:07]}  Kc2 {[%clk 0:00:23]} 54. Qe7 {[%clk 0:00:07]}  e2 {[%clk 0:00:24]} 55. h7 {[%clk 0:00:07]}  Kd2 {[%clk 0:00:24]} 56. h8=Q {[%clk 0:00:07]}  Ne4 {[%clk 0:00:25]} 57. Qd4+ {[%clk 0:00:06]}  Kc2 {[%clk 0:00:24]} 58. Qe3 {[%clk 0:00:06]}  Kd1 {[%clk 0:00:24]} 59. Qd7+ {[%clk 0:00:05]}  Kc2 {[%clk 0:00:22]} 60. Qdd3+ {[%clk 0:00:05]}  Kb2 {[%clk 0:00:16]} 61. Qexe2+ {[%clk 0:00:05]} 1-0


[Site "https://www.chess.com"]